Cogmind - Beta 16 *** ADVENTURER MODE // 2025.11.09 @ 17:22:10 Player: CaptainWalker Result: Destroyed by G-47 Trooper with Particle Gun Performance ------------- Evolutions (0) 0 Regions Visited (1) 200 Robots Destroyed (17) 85 Value Destroyed (327) 327 Prototype IDs (0) 0 Alien Tech Used (0) 0 Bonus (0) 0 TOTAL SCORE: 612 Bonus ------- None Cogmind --------- Core Integrity 0/250 Matter 146/500 Energy 100/100 System Corruption 0% Temperature Warm (105) Movement Core (250) Ox4 Location -10/Materials Parts ------- > --- POWER (1) -------- (None) > --- PROPULSION (2) --- (None) > --- UTILITY (2) ------ Medium Storage Unit High-capacity Matter Pod > --- WEAPON (2) ------- (None) > --- INVENTORY (10) --- Light Ion Engine Small Storage Unit Peak State ------------ > --- POWER ------------ Ion Engine > --- PROPULSION ------- Aluminum Leg Aluminum Leg > --- UTILITY ---------- Small Storage Unit High-capacity Matter Pod > --- WEAPON ----------- Medium Laser Medium Laser > --- INVENTORY -------- Light Ion Engine Light Assault Rifle [Rating: 7] Favorites ----------- Power Ion Engine Engine Ion Engine Propulsion Aluminum Leg Leg Aluminum Leg Utility High-capacity Matter Pod Storage High-capacity Matter Pod Weapon Medium Laser Energy Gun Medium Laser Ballistic Gun Light Assault Rifle Launcher Grenade Launcher Build | -11 -10 ------- Run | Yrd Mat Slots Evolved . | . . Power . | . . Propulsion . | . . Utility . | . . Weapon . | . . Parts Attached 10 | 6 4 Power 1 | 1 . Engine 1 | 1 . Core . | . . Reactor . | . . Propulsion 2 | 2 . Treads . | . . Leg 2 | 2 . Wheel . | . . Hover . | . . Flight . | . . Utility 3 | 1 2 Device . | . . Storage 3 | 1 2 Processor . | . . Hackware . | . . Protection . | . . Artifact . | . . Weapon 4 | 2 2 Energy Gun 2 | 2 . Energy Cannon . | . . Ballistic Gun 1 | . 1 Ballistic Cannon . | . . Launcher 1 | . 1 Special Weapon . | . . Impact Weapon . | . . Slashing Weapon . | . . Piercing Weapon . | . . Special Melee Weapon . | . . Unidentified Prototypes . | . . Parts Lost 7 | . 7 Power 1 | . 1 Propulsion 2 | . 2 Utility . | . . Weapon 4 | . 4 Highest Loss Streak 7 | . 7 To Critical Strikes . | . . Average Backups 3 | 1 3 Power . | . 1 Propulsion . | . . Utility . | . . Weapon 1 | . 1 Tool/Special . | . . Unused Backups 1 | . 1 Power 1 | . 1 Propulsion . | . . Utility . | . . Weapon . | . . Tool/Special . | . . Average Slot Usage (%) 92 | . 92 Engine 13 | . 13 Leg 24 | . 24 Storage 26 | . 26 Energy Gun 15 | . 15 Launcher 10 | . 10 Peak Build Rating 7 | 6 7 Average Rating 6 | 5 6 On Entrance 3 | . 6 Avg Prop Armor Cover (%) . | . . Naked Turns . | . . Heaviest Build 24 | 14 24 Greatest Support 20 | 20 20 Greatest Overweight (x) 6 | . 6 Average Overweight (x) . | . . Largest Inventory Capacity 10 | 8 10 Average Capacity 9 | 7 9 Most Carried 5 | 2 5 Average Carried 3 | 1 3 Final Capacity 10 | 8 10 Final Carried 2 | 2 2 Class Distribution -------------------- 100% | Mutant Dominant Class ---------------- Mutant | -10/Materials Resources | -11 -10 ----------- Run | Yrd Mat Matter Collected 274 | 201 73 Remotely . | . . Salvage Created 306 | . 306 Parts 21 | . 21 Haulers Intercepted . | . . Recyclers Shooed . | . . Parts Field Recycled . | . . Retrieved Matter . | . . Parts Self-Destructed . | . . Prevented . | . . Parts Restored . | . . Kills | -11 -10 ------- Run | Yrd Mat Combat Hostiles Destroyed 6 | . 6 Guns 2 | . 2 AOE 4 | . 4 Classes Destroyed 5 | . 5 Worker 3 | . 3 Builder 4 | . 4 Recycler 1 | . 1 Watcher 3 | . 3 Grunt 6 | . 6 Best Kill Streak 12 | . 12 Combat Bots Only 2 | . 2 Max Kills in Single Turn 4 | . 4 Gunslinging . | . . Exploded 2 | . 2 Melee . | . . Uniques/NPCs Destroyed . | . . Combat | -11 -10 -------- Run | Yrd Mat Hostile Shots Fired 106 | . 106 Missed 21 | . 21 Hits 85 | . 85 Projectile 85 | . 85 Critical Strikes 1 | . 1 Damage Taken 965 | . 965 Core 258 | . 258 Absorbed by Shields . | . . Ignored by Resistances 288 | . 288 Core Remaining (%) 100 | 100 . Volleys Fired 38 | . 38 Largest 2 | . 2 Hottest 100 | . 100 Shots Fired 64 | . 64 Gun 50 | . 50 Cannon . | . . Launcher 14 | . 14 Special . | . . Kinetic 13 | . 13 Thermal 37 | . 37 Explosive 14 | . 14 Electromagnetic . | . . Robot Hit Streak 10 | . 10 Robot Miss Streak 2 | . 2 Penetration Max . | . . Secondary Targets 1 | . 1 Max Gunslinging Chain 1 | . 1 Shots Hit Robots 40 | . 40 Core Hits 30 | . 30 Critical Kills . | . . Critical Parts Destroyed . | . . Critical Strikes 4 | . 4 Burn 4 | . 4 Melee Attacks . | . . Impact . | . . Slashing . | . . Piercing . | . . Sneak Attacks . | . . Combat Hostiles . | . . Follow-up Attacks . | . . Damage Inflicted 1391 | . 1391 Guns 342 | . 342 Cannons . | . . Explosions 1049 | . 1049 Melee . | . . Ramming . | . . Kinetic 80 | . 80 Thermal 262 | . 262 Explosive 1049 | . 1049 Electromagnetic . | . . Impact . | . . Slashing . | . . Piercing . | . . Highest Corruption . | . . Average Corruption . | . . Corruption Purged . | . . Corruption Blocked . | . . Overload Shots . | . . Overflow Damage . | . . Projectiles . | . . Explosions . | . . Melee . | . . Knockbacks . | . . Impact . | . . Kinetic . | . . Secondary . | . . Self-Inflicted Damage 94 | . 94 Shots 6 | . 6 Rammed . | . . Targets Rammed . | . . Kicked . | . . Crushed . | . . Highest Temperature 367 | . 367 Average Temperature 141 | . 141 Received Heat Transfer 666 | . 666 Effects 1 | . 1 Interference 1 | . 1 Siege Activations . | . . Martial Activations . | . . Shielding Activations . | . . Robots Disrupted . | . . Combat Hostiles . | . . Robots Corrupted . | . . Combat Hostiles . | . . Parts Fried . | . . Impact Corruptions . | . . Robots Melted . | . . Combat Hostiles . | . . Parts Melted 3 | . 3 Heat Transferred 1073 | . 1073 Parts Sabotaged . | . . Parts Stolen . | . . Parts Stripped . | . . Power Chain Reactions . | . . Alert | -11 -10 ------- Run | Yrd Mat Maximum Alert Level . | . . Low Security (%) 100 | 100 100 Level 1 . | . . Level 2 . | . . Level 3 . | . . Level 4 . | . . Level 5 . | . . High Security . | . . Max Security . | . . Peak Influence 166 | . 166 Initial . | . . Average 50 | . 63 Influence Increases 316 | . 316 Destroy 0b10 Robot/C 120 | . 120 Destroy 0b10 Robot/NC 55 | . 55 Destroy Leader 36 | . 36 Disable Machine 18 | . 18 Destroy Structure 72 | . 72 Lose Combat Pursuer 15 | . 15 Influence Decreases 220 | . 220 Time Decay 150 | . 150 Lost Part 70 | . 70 Squads Dispatched 1 | . 1 Investigation 1 | . 1 Extermination . | . . Reinforcement . | . . Assault . | . . Garrison . | . . Intercept . | . . Searches Triggered . | . . Construction Impeded . | . . Haulers Reinforced . | . . Active Scanning Responses . | . . Cargo Convoy Interrupts . | . . Stealth | -11 -10 --------- Run | Yrd Mat Distress Signals . | . . Communications Jammed . | . . Distress Signals . | . . Times Spotted 12 | . 12 Peak Tracking Total 5 | . 5 Tactical Retreats 1 | . 1 Traps | -11 -10 ------- Run | Yrd Mat Traps Triggered 1 | . 1 Indirectly . | . . Trap Hack Attempts . | . . Triggered . | . . Disarmed . | . . Reprogrammed . | . . Reused . | . . Traps Extracted . | . . Installed . | . . Triggered . | . . Machines | -11 -10 ---------- Run | Yrd Mat Machines Disabled 2 | . 2 Max in Single Turn 1 | . 1 Machines Repaired . | . . Machines Dismantled . | . . Machines Sabotaged . | . . Overloaded Fab Kills . | . . Hacking | -11 -10 --------- Run | Yrd Mat Machines Accessed . | . . Terminals . | . . Fabricators . | . . Repair Stations . | . . Recycling Units . | . . Scanalyzers . | . . Garrison Access . | . . Total Hacks . | . . Successful . | . . Failed . | . . Catastrophic . | . . Database Lockouts . | . . Manual . | . . Terminals . | . . Fabricators . | . . Repair Stations . | . . Recycling Units . | . . Scanalyzers . | . . Garrison Access . | . . Terminal Hacks . | . . Fabricator Hacks . | . . Repair Station Hacks . | . . Recycling Unit Hacks . | . . Scanalyzer . | . . Garrison Access Hacks . | . . Unauthorized Hacks . | . . Terminals . | . . Fabricators . | . . Repair Stations . | . . Recycling Units . | . . Scanalyzers . | . . Garrison Access . | . . Data Cores Recovered . | . . Used . | . . Hacking Detections . | . . Full Trace Events . | . . Feedback Events . | . . Feedback Blocked . | . . Robot Schematics Acquired . | . . Robots Built . | . . Authchips . | . . Time . | . . Total Robot Build Rating . | . . Part Schematics Acquired . | . . Parts Built . | . . Authchips . | . . Time . | . . Total Part Build Rating . | . . Part Studies Acquired . | . . Parts Repaired . | . . Time . | . . Parts Recycled . | . . Recycled Matter . | . . Retrieved Matter . | . . Retrieved Components . | . . Parts Scanalyzed . | . . Part Schematics Acquired . | . . Parts Damaged . | . . Bothacking | -11 -10 ------------ Run | Yrd Mat Used RIF Installer . | . . Robots Hacked . | . . Non-combat . | . . Combat . | . . Robot Hacks Applied . | . . Relay Couplers Released . | . . Fabnet Peak Effective % . | . . Robots Rewired . | . . Allies Hacked . | . . Hacks Repelled . | . . Allies | -11 -10 -------- Run | Yrd Mat Total Allies . | . . Largest Group . | . . Highest-Rated Group . | . . Highest-Rated Ally . | . . Total Orders . | . . Ally Attacks . | . . Total Damage . | . . Kills . | . . Allies Corrupted . | . . Allies Melted . | . . Intel | -11 -10 ------- Run | Yrd Mat Active Infowar (turns) . | . . Robot Analysis Total . | . . Derelict Logs Recovered . | . . Drone Launches . | . . Drone Recoveries . | . . Exploration | -11 -10 ------------- Run | Yrd Mat Turns Passed 600 | 125 475 Spaces Moved 306 | 101 205 Core 19 | 13 6 Treads . | . . Legs 287 | 88 199 Wheels . | . . Hover . | . . Flight . | . . Fastest Speed 50 | 50 120 Average Speed 156 | 110 179 Slowest Speed 350 | 120 350 Overloaded Moves . | . . Propulsion Burnouts . | . . Robots Hopped . | . . Potential Cave-ins . | . . Cave-ins Triggered . | . . Exploration Rate (%) 24 | 5 44 Regions Visited 1 Branch Regions . Pre-discovered Areas . | . . Known Exits Taken . | . . Unknown Exits Taken 1 | 1 . Scrap Searched . | . . Spaces Dug 4 | . 4 Terrain Destroyed 65 | . 65 Melee . | . . Projectile . | . . AOE 65 | . 65 Terrain Rammed . | . . Walls Destroyed . | . . Machines Disabled . | . . Actions | -11 -10 --------- Run | Yrd Mat Total 367 | 114 253 Wait . | . . Move 305 | 100 205 Hop . | . . Pick Up 11 | 8 3 Fast Attach . | . . Attach 11 | 6 5 Detach 2 | . 2 Swap . | . . Drop . | . . Fire 38 | . 38 Melee . | . . Ram . | . . Kick . | . . Crush . | . . Escape Stasis . | . . Rewire . | . . Trap . | . . Miscellaneous . | . . Route ------- -11/Scrapyard -10/Materials (discovered 2 exits: [*Min] / [*Sub]) History --------- Turn | Location | Event 8 | -11/Scrapyard | Discovered new exit (range 15) 126 | -11/Scrapyard | Entered Materials 208 | -10/Materials | Discovered new exit (range 13) 310 | -10/Materials | Build established: Mutant 525 | -10/Materials | Discovered new exit (range 15) 567 | -10/Materials | Core integrity fell below 50% 585 | -10/Materials | Core integrity fell below 20% 601 | -10/Materials | Destroyed by G-47 Trooper with Particle Gun Last Messages --------------- 00584_ G-34 Mercenary overheating. 00584_ U-05 Engineer lays Concrete. 00585_ K-01 Serf collects debris. 00585_ G-34 Mercenary overheating. 00586_ U-05 Engineer lays Concrete. 00587_ Melted Aluminum Leg. 00587_ U-05 Engineer lays Concrete. 00587_ G-34 Mercenary overheating. 00588_ U-05 Engineer lays Concrete. 00588_ G-34 Mercenary overheating. 00589_ K-01 Serf collects debris. 00589_ G-34 Mercenary destroyed. 00589_ U-05 Engineer lays Concrete. 00592_ K-01 Serf collects debris. 00592_ U-05 Engineer builds a Wall. 00595_ K-01 Serf collects debris. 00597_ U-05 Engineer builds a Wall. 00598_ Med. Laser destroyed. 00599_ K-01 Serf collects debris. [Achievement: First Step to Greatness] Map ----- +----------------------------------------------------+ | ??????????????????????????????????????????? | | ??????????????????????????????????????????? | | ??????????????????????????????????????????? | | ??????????????????????????????????????????? | | ??????????????????????????????????????????? | | ??????????????????????????????????????????? | | ??????????????????????????????????????????? | | ??????????????????????????????????????????? | | ??????????????????????????????????????????? | | ??????????????????????????????????????????? | | ????????????????????????!!!???????????????? | | #+##???????????????????" ""?????????????? | | ??????????????????? #????????????? | | ??????????????????? < #????????????? | | ??????????????????? #????????????? | | ^^^#??????????????????? ?????????????? | | #??????????????????? ??????????????? | | #???????????#???????# #??????????????? | | #???????????# ??????# #??????????????? | | #???????????#u####### #??????????????? | | ###########?# ]]] #??????????????? | | # T ### %]] #??????????????? | | "" ## ]] [[ #??????????????? | | " # [ ##+#+#?????????? | | " #?????????? | | kg @ #?????????? | | # "T" #?????????? | | #g % ##+####### #?????????? | | # # # # #????? #?????????? | | ###########?# # #????????????????? | | # #??????# # + ??????????????? | | ! #?###### # ####?????????????? | | [ ### # # #????????????????? | | + + # # #????????????????? | | ### # # #????????????????? | | #?# # ##+####????????????????? | | # ###?#! + #???????????????????? | | # ??# ! # #???????????????????? | | # ?#[ # #???????????????????? | | # # + #???????????????????? | | + # # #???????????????????? | | # ###### #???????????????????? | | # #????# ???????????????????? | | # #????#######??????????????????? | | # #?????????????????????????????? | | # #?????????????????????????????? | | ##########?????????????????????????????? | | ###########????????????????????????????? | | #????????????????????????????? | | #????????????????????????????? | +----------------------------------------------------+ Best States ------------- Heat Dissipation 25 Energy Generation 10 Energy Capacity 250 Matter Stores 247 Matter Capacity 500 Sight Range 16 Terrain Scan Density 10 Resistance: KI 20 Resistance: TH 20 Resistance: EX 20 Resistance: EM 20 Resistance: I 20 Resistance: S 20 Resistance: P 20 Evasion (%) 55 Offensive Hacking 10 Item Schematics ----------------- None Robot Schematics ------------------ None Fabricated ------------ Nothing Repaired ---------- Nothing Studied --------- None Alien Tech Used ----------------- None Achievements -------------- First Step to Greatness Challenges ------------ None Game ------ Seed AssaultSubdwellerGreatsword Manual? 0 Play Time 00:10:47 Cumulative 0.4 hours Start 2025.11.09 @ 14:39:44 End 2025.11.09 @ 17:22:10 Sessions 1 Manual Loads 0 Difficulty Adventurer Special Mode None Game No. 1 Rogue -1 Adventurer 2 Explorer 0 Win Type - Total 0 Types 0/0/0/0/0/0/0/0/0/0 Lore% 0 Gallery% 1 Achievement% 1 Wizard Run 0 Options --------- Layout 1 ASCII 0 Keyboard 0 Movement Arrows Keybinds 0 Fullscreen 2 Font 18/SmallcapsGlow Map View 25x20 Zoom Use 100% Tactical HUD 1 Map Filters NONE Filters NONE Steam X RUN: 4becbec5-a9c0-48e9-99b2-99dc6625f8c0